bitfinex-derivatives/quotes_ETHF0:USTF0_20240927
["timestamp","ask_amount","ask_price","bid_price","bid_amount"]
[1727408868727,0.4166932,2638.1,2637.6,2.96]
[1727408869837,0.37901,2638.0,2637.6,2.96]
[1727408870038,3.58681,2638.0,2637.6,2.96]
[1727408870336,0.37901,2638.0,2637.6,2.96]
[1727408871736,3.58681,2638.0,2637.6,2.96]
[1727408872535,0.37901,2638.0,2637.6,2.96]
[1727408873627,3.58681,2638.0,2637.6,2.96]
[1727408874530,0.37901,2638.0,2637.6,2.96]
[1727408876038,0.37904,2637.9,2637.6,2.96]
[1727408876431,3.58682,2638.0,2637.6,2.96]
[1727408876639,3.2078,2638.0,2637.6,2.96]
[1727408877435,0.37903,2637.9,2637.6,2.96]
[1727408880540,0.37903,2637.9,2637.7,0.3806]
[1727408880946,0.37904,2637.8,2637.7,0.3806]
[1727408881440,3.7912,2637.8,2637.3,0.4006]
[1727408881741,0.37908,2637.6,2637.3,0.4006]
[1727408882132,3.99776,2637.7,2637.4,2.96]
[1727408882335,3.2078,2637.7,2637.4,2.96]
[1727408882543,3.2078,2637.7,2637.4,3.3521]
[1727408882845,3.58686,2637.7,2637.4,3.3521]
[1727408884542,0.37907,2637.6,2637.4,3.3521]
[1727408885940,0.37907,2637.6,2637.4,2.96]
[1727408886441,3.2078,2637.7,2637.4,2.96]
[1727408886641,0.37909,2637.5,2637.3,0.4006]
[1727408886846,0.3791,2637.4,2637.3,0.4006]
[1727408887138,0.37909,2637.5,2637.3,0.4006]
[1727408887345,0.3791,2637.4,2637.3,0.4006]
[1727408892642,0.94783,2637.2,2636.6,3.2968]
[1727408892848,0.37919,2636.8,2636.7,0.3724]
[1727408893451,3.9681,2637.1,2636.7,0.3724]
[1727408894154,0.37914,2637.2,2636.9,2.96]
[1727408894446,0.37914,2637.2,2637.0,0.3935]
[1727408894748,0.37912,2637.3,2637.0,0.7946]
[1727408896950,3.2078,2637.5,2637.1,2.96]
[1727408897147,3.2078,2637.5,2637.2,0.3832]
[1727408897448,3.58689,2637.5,2637.2,0.3832]
[1727408897653,3.2078,2637.5,2637.2,0.3832]
[1727408898244,3.58689,2637.5,2637.2,0.3832]
[1727408899647,3.2078,2637.5,2637.2,0.3832]
[1727408900767,3.58689,2637.5,2637.2,0.3832]
[1727408900954,3.2078,2637.5,2637.2,0.3832]
[1727408902059,0.37908,2637.6,2637.2,0.3832]
[1727408903860,0.37909,2637.5,2637.2,0.3832]
[1727408904962,3.2078,2637.7,2637.2,0.3832]
[1727408905165,0.37911,2637.4,2637.2,0.3832]
[1727408905560,0.37909,2637.5,2637.2,0.3832]
[1727408905763,0.37908,2637.6,2637.2,0.3832]
[1727408906262,0.37909,2637.5,2637.2,0.3832]
[1727408906465,0.37909,2637.5,2637.2,1.36629122]
[1727408906655,0.37908,2637.6,2637.2,1.36629122]
[1727408906857,3.2078,2637.7,2637.4,2.96]
[1727408907059,0.37907,2637.6,2637.5,0.3768]
[1727408907260,0.3791,2637.4,2637.3,0.98309122]
[1727408907559,0.3791,2637.4,2637.0,1.35989122]
[1727408907560,0.37914,2637.2,2637.0,1.35989122]
[1727408907757,0.37914,2637.2,2637.0,0.3768]
[1727408908266,3.58694,2637.1,2637.0,0.3768]
[1727408908968,3.2078,2637.1,2636.8,0.3807]
[1727408909164,0.78706,2637.0,2636.8,0.3807]
[1727408910869,0.4079,2637.0,2636.8,0.3807]
[1727408911166,0.37917,2636.9,2636.8,0.3807]
[1727408914669,0.78707,2637.0,2636.8,0.3807]
[1727408915375,0.37917,2636.9,2636.8,0.3807]
[1727408915580,0.78706,2637.0,2636.8,0.3807]
[1727408915874,0.48867,2636.9,2636.8,0.3807]
[1727408916074,0.1095,2636.9,2636.8,0.3807]
[1727408916770,0.48867,2636.9,2636.8,0.3807]
[1727408917281,0.1095,2636.9,2636.8,0.3807]
[1727408918070,0.48867,2636.9,2636.8,0.3807]
[1727408918970,0.1095,2636.9,2636.8,0.3807]
[1727408919676,0.1095,2636.9,2636.8,3.3407]
[1727408919875,0.1095,2636.9,2636.8,7.1335]
[1727408920077,0.37911,2637.3,2636.8,8.49577122]
[1727408920268,0.37911,2637.3,2636.9,3.2078]
[1727408921279,0.37912,2637.3,2636.9,3.2078]
[1727408921483,0.37912,2637.3,2636.8,4.70297122]
[1727408922273,0.37912,2637.3,2636.9,3.2078]
[1727408923078,0.37912,2637.3,2636.9,4.19089122]
[1727408923783,0.37912,2637.3,2636.8,4.70297122]
[1727408924181,0.37912,2637.3,2636.9,0.98309122]
[1727408925082,0.37912,2637.3,2636.8,4.32379122]
[1727408925579,0.37912,2637.3,2636.9,0.98309122]
[1727408926084,0.4067,2637.4,2636.9,0.98309122]
[1727408926085,0.37914,2637.2,2636.9,0.98309122]
[1727408926284,0.37914,2637.2,2637.0,1.37]
[1727408927684,0.37914,2637.2,2637.1,0.407]
[1727408930684,0.37912,2637.3,2637.1,0.407]
[1727408931087,0.37913,2637.2,2637.1,0.407]
[1727408931284,0.4067,2637.4,2637.1,0.407]
[1727408931678,1.16359,2637.5,2637.1,1.777]
[1727408931990,0.3791,2637.4,2637.1,2.1514]
[1727408932286,0.4024,2637.5,2637.1,2.1514]
[1727408932287,0.7815,2637.5,2637.1,2.1514]
[1727408932689,0.3791,2637.4,2637.1,2.1514]
[1727408935088,0.4024,2637.5,2637.1,0.7814]
[1727408935391,0.37913,2637.2,2637.1,0.407]
[1727408938589,0.37911,2637.4,2637.1,1.777]
[1727408939393,0.4024,2637.5,2637.2,1.37]
[1727408939394,0.37911,2637.3,2637.2,1.37]
[1727408939695,0.37911,2637.4,2637.2,1.37]
[1727408939892,0.37911,2637.4,2637.3,0.3728]
[1727408946801,1.32725,2636.6,2636.4,0.089]
[1727408946993,0.3793,2636.0,2635.9,0.4026]
[1727408947194,4.9571,2636.0,2635.9,0.4026]
[1727408947495,3.5871,2636.0,2635.9,0.4026]
[1727408948595,3.5871,2636.0,2635.7,0.3921]
[1727408948596,0.37933,2635.8,2635.7,0.3921]
[1727408948797,0.37932,2635.9,2635.7,0.3921]
[1727408949099,0.37933,2635.8,2635.7,0.3921]
[1727408949405,0.37932,2635.9,2635.7,0.3921]
[1727408949609,3.58711,2636.0,2635.7,0.3921]
[1727408949797,0.37932,2635.9,2635.8,1.37]
[1727408950302,3.58711,2636.0,2635.7,0.3921]
[1727408950601,3.5871,2636.0,2635.7,3.3521]
[1727408952104,0.37932,2635.9,2635.7,3.3521]
[1727408952402,3.2078,2636.0,2635.7,3.3521]
[1727408952403,3.58711,2636.0,2635.7,3.3521]
[1727408952805,0.37932,2635.9,2635.7,3.3521]
[1727408954706,0.37932,2635.9,2635.7,0.3921]
[1727408955595,0.37932,2635.9,2635.8,3.7936]
[1727408955795,0.01,2636.6,2635.8,9.9614]
[1727408956006,0.01,2636.6,2636.4,2.96]
[1727408956208,0.01,2636.6,2636.5,0.386]
[1727408956407,0.01,2636.6,2636.5,17.5749]
[1727408958409,0.38921,2636.6,2636.5,17.5749]
[1727408959014,0.38921,2636.6,2636.5,13.7821]
[1727408959905,0.01,2636.6,2636.5,13.7821]
[1727408961909,0.38921,2636.6,2636.5,13.7821]
[1727408964712,0.38921,2636.6,2636.5,0.386]
[1727408969420,0.49871,2636.6,2636.5,0.386]
[1727408972725,0.49871,2636.6,2636.5,4.1788]
[1727408975027,0.49871,2636.6,2636.5,0.386]
[1727408980619,0.49871,2636.6,2636.5,13.386]
[1727408981837,0.38921,2636.6,2636.5,13.386]
[1727408987226,0.01,2636.6,2636.5,26.76583]
[1727408987425,0.37916,2637.0,2636.6,0.37921]
[1727408987630,0.37916,2637.0,2636.7,1.37]
[1727408987834,0.37916,2637.0,2636.7,1.7773]
[1727408988425,0.37918,2636.9,2636.7,1.7773]
[1727408990133,0.37918,2636.9,2636.7,0.4073]
[1727408990536,0.37918,2636.9,2636.8,0.3833]
[1727408996133,0.48868,2636.9,2636.8,0.3833]
[1727409000842,0.1095,2636.9,2636.8,0.3833]
[1727409001043,0.48867,2636.9,2636.8,0.3833]
[1727409002438,0.1095,2636.9,2636.8,0.3833]
[1727409004037,0.48867,2636.9,2636.8,0.3833]
[1727409006040,0.1095,2636.9,2636.8,2.13249]
[1727409006249,0.1095,2636.9,2636.8,1.7533]
[1727409007134,0.48867,2636.9,2636.8,0.3833]
[1727409007337,0.37919,2636.8,2636.7,0.4073]
[1727409007539,0.76819,2636.8,2636.7,2.07678032]
[1727409008444,0.389,2636.8,2636.7,0.4073]
[1727409010138,0.3792,2636.7,2636.6,1.46986318]
[1727409010339,0.37921,2636.6,2636.5,13.386]
[1727409010545,3.2078,2636.7,2636.5,13.386]
[1727409010746,0.76819,2636.8,2636.5,14.85586318]
[1727409010950,0.389,2636.8,2636.6,0.3734]
[1727409011140,1.7567,2636.9,2636.6,0.3734]
[1727409011141,0.37918,2636.9,2636.6,3.21326318]
[1727409011340,0.37919,2636.8,2636.6,1.7434]
[1727409011552,0.37918,2636.9,2636.6,1.7434]
[1727409011748,0.37918,2636.9,2636.6,3.21326318]
[1727409012448,0.75866,2637.0,2636.6,3.59247318]
[1727409012644,0.37916,2637.0,2636.8,1.37]
[1727409012849,0.37916,2637.0,2636.9,0.3988]
[1727409013044,0.37916,2637.0,2636.6,2.22247318]
[1727409013045,0.37918,2636.9,2636.7,2.83986318]
[1727409013350,3.2078,2637.1,2636.7,2.83986318]
[1727409013351,3.58696,2637.1,2636.7,1.37]
[1727409013540,3.58695,2637.1,2636.7,1.37]
[1727409013943,0.37915,2637.1,2636.7,2.83986318]
[1727409014151,0.37915,2637.1,2636.7,1.37]
[1727409014341,0.37915,2637.1,2636.7,2.83986318]
[1727409015549,0.37915,2637.1,2636.8,1.67120203]
[1727409015747,0.37915,2637.1,2636.7,2.83986318]
[1727409015949,0.37915,2637.1,2636.8,1.67121676]
[1727409016151,0.37915,2637.1,2636.7,2.83986318]
[1727409016349,0.37915,2637.1,2636.8,1.67120836]
[1727409016549,0.37915,2637.1,2636.8,1.46986318]
[1727409016752,0.37913,2637.2,2636.8,1.46986318]
[1727409016951,0.37913,2637.2,2636.9,1.37]
[1727409017255,0.3994,2637.3,2637.0,0.3826]
[1727409017454,0.3994,2637.3,2637.0,0.7819]
[1727409017750,0.77852,2637.3,2637.0,0.7819]
[1727409017954,0.37913,2637.2,2637.0,0.7819]
[1727409018154,0.77852,2637.3,2637.0,0.7819]
[1727409019157,0.37913,2637.2,2637.0,0.7819]
[1727409019854,0.3994,2637.3,2637.0,0.7819]
[1727409020354,0.37913,2637.2,2637.0,0.7819]
[1727409022760,0.48863,2637.2,2637.0,0.7819]
[1727409024853,0.48863,2637.2,2637.1,0.4099]
[1727409025458,0.1095,2637.2,2637.1,0.4099]
[1727409025658,0.48863,2637.2,2637.1,0.4099]
[1727409029465,0.48863,2637.2,2637.0,0.7819]
[1727409030758,0.1095,2637.2,2637.0,0.7819]
[1727409030960,0.48864,2637.2,2637.0,0.7819]
[1727409031359,0.37914,2637.1,2637.0,0.7819]
[1727409031960,0.37914,2637.1,2637.0,0.3826]
[1727409032255,0.37916,2637.0,2636.8,2.28966318]
[1727409032458,0.37915,2637.1,2636.9,1.67253945]
[1727409032656,0.37916,2637.0,2636.9,1.46986318]
[1727409032860,0.37916,2637.0,2636.9,3.14238476]
[1727409034551,0.37916,2637.0,2636.9,3.14275595]
[1727409035463,0.37916,2637.0,2636.9,1.67289277]
[1727409036459,0.37916,2637.0,2636.9,1.67285791]
[1727409036866,0.37916,2637.0,2636.8,2.28966318]
[1727409037065,0.37916,2637.0,2636.9,1.6729456]
[1727409037766,0.37916,2637.0,2636.8,0.8198]
[1727409038467,3.6072,2637.3,2636.8,0.8198]
[1727409038468,0.37915,2637.1,2636.8,0.8198]
[1727409038767,0.37915,2637.1,2636.9,1.37]
[1727409039569,3.58692,2637.3,2637.0,1.37]
[1727409039771,3.58692,2637.3,2637.1,0.3991]
[1727409040273,3.2078,2637.3,2637.2,0.3915]
[1727409041266,3.2078,2637.6,2637.2,5.93262]
[1727409041462,3.58681,2638.0,2637.5,1.37]
[1727409041669,3.2078,2638.0,2637.9,1.37]
[1727409041871,0.37904,2637.8,2637.6,0.7906]
[1727409042164,0.37904,2637.8,2637.7,13.0]
[1727409042470,0.37905,2637.8,2637.4,3.2078]
[1727409042674,0.37906,2637.7,2637.6,0.3912]
[1727409042968,0.37906,2637.7,2637.6,13.3912]
[1727409043364,0.37907,2637.6,2637.5,0.4032]
[1727409043562,0.77027,2637.6,2637.5,0.4032]
[1727409043768,0.77027,2637.6,2637.5,13.4032]
[1727409045770,0.77027,2637.6,2637.5,0.4032]
[1727409047662,0.37906,2637.7,2637.5,0.4032]
[1727409048568,0.75075,2637.8,2637.5,1.7732]
[1727409048772,4.5778,2638.0,2637.5,1.7732]
[1727409049083,0.37903,2637.9,2637.5,1.7732]
[1727409049570,5.35622,2638.0,2637.5,1.7732]
[1727409049960,0.37904,2637.9,2637.5,1.7732]
[1727409050165,5.35622,2638.0,2637.5,1.7732]
[1727409050672,0.37903,2637.9,2637.5,1.7732]
[1727409050875,5.35622,2638.0,2637.5,1.7732]
[1727409051370,0.37903,2637.9,2637.5,1.7732]
[1727409051567,0.37903,2637.9,2637.6,13.0]
[1727409051769,0.37903,2637.9,2637.7,0.3899]
[1727409052673,0.37903,2637.9,2637.8,0.4036]
[1727409056572,0.4107,2638.0,2637.8,1.7736]
[1727409056771,0.78971,2638.0,2637.9,0.3929]
[1727409060068,0.4166832,2638.1,2637.9,0.3929]
[1727409060370,0.37901,2638.0,2637.9,0.3929]
[1727409060570,0.78191,2638.0,2637.9,0.3929]
[1727409060975,0.4029,2638.0,2637.9,0.3929]
[1727409061273,0.0376832,2638.1,2637.9,1.7629]
[1727409066673,0.3833,2638.0,2637.9,0.3929]
[1727409067266,0.0376832,2638.1,2637.9,0.3929]
[1727409067472,0.0376832,2638.1,2638.0,1.37]
[1727409073179,0.0376832,2638.1,2637.9,0.3929]
[1727409073180,0.4166832,2638.1,2637.9,0.3929]
[1727409073375,0.3858,2638.0,2637.9,0.3929]
[1727409074578,0.76481,2638.0,2637.9,0.3929]
[1727409075084,0.3858,2638.0,2637.9,0.3929]
[1727409075781,0.76481,2638.0,2637.9,0.3929]
[1727409077083,0.37907,2637.6,2637.4,0.97650834]
[1727409077279,0.37909,2637.5,2637.4,0.7925]
[1727409077477,0.3885,2637.5,2637.4,0.7925]
[1727409077679,0.3885,2637.5,2637.4,15.1625]
[1727409078387,0.76759,2637.5,2637.4,15.1625]
[1727409078584,0.76759,2637.5,2637.1,0.97650834]
[1727409078585,0.3791,2637.4,2637.1,0.97650834]
[1727409078783,0.37911,2637.3,2637.1,0.3936]
[1727409078992,0.37911,2637.3,2637.1,13.3936]
[1727409079284,0.76759,2637.5,2637.2,1.37]
[1727409079484,0.37908,2637.6,2637.4,1.37]
[1727409079790,0.37906,2637.7,2637.5,2.5473]
[1727409080085,0.77075,2637.8,2637.5,2.5473]
[1727409080681,0.3917,2637.8,2637.5,2.5473]
[1727409081382,0.37903,2637.9,2637.7,1.37]
[1727409081785,3.97852,2638.0,2637.7,1.37]
[1727409082785,0.37903,2637.9,2637.7,1.37]
[1727409083684,3.5995,2638.0,2637.7,1.37]
[1727409083891,3.97852,2638.0,2637.7,1.37]
[1727409085491,3.97852,2638.0,2637.7,2.34650834]
[1727409085984,0.5261932,2638.1,2637.9,1.37]
[1727409086182,0.1471832,2638.1,2638.0,1.1551]
[1727409086977,0.5261832,2638.1,2638.0,1.1551]
[1727409088792,0.4166832,2638.1,2638.0,1.1551]
[1727409090892,0.0376832,2638.1,2638.0,1.1551]
[1727409093391,0.0376832,2638.1,2638.0,2.5251]
[1727409098296,0.0376832,2638.1,2638.0,4.20270944]
[1727409099892,0.0376832,2638.1,2638.0,2.5251]
[1727409102203,0.0376832,2638.1,2638.0,15.5251]
[1727409102900,0.1471832,2638.1,2638.0,15.5251]
[1727409107692,0.1471832,2638.1,2638.0,15.90411]
[1727409107999,0.1471832,2638.1,2638.0,19.69451]
[1727409109108,0.1471832,2638.1,2638.0,22.84177917]
[1727409109702,0.1471832,2638.1,2638.0,22.46276917]
[1727409109899,0.1471832,2638.1,2638.0,22.46234678]
[1727409110892,0.1471832,2638.1,2638.0,22.84135678]
[1727409111094,0.1471832,2638.1,2638.0,21.09234678]
[1727409111300,0.1471832,2638.1,2638.0,22.46234678]
[1727409111601,0.1471832,2638.1,2638.0,21.68604678]
[1727409112699,0.1471832,2638.1,2638.0,18.5392]
[1727409115211,0.0376832,2638.1,2638.0,18.5392]
[1727409116701,0.0376832,2638.1,2638.0,18.91821]
[1727409117407,0.356,2638.8,2638.3,0.37896]
[1727409117609,0.3789,2638.8,2638.7,1.37]
[1727409118301,0.37892,2638.7,2638.6,1.37]
[1727409118498,0.3953,2638.9,2638.6,1.37]
[1727409118697,0.37891,2638.8,2638.6,1.37]
[1727409119509,0.3953,2638.9,2638.6,1.37]
[1727409119807,0.77419,2638.9,2638.6,1.37]
[1727409120006,0.3789,2638.8,2638.6,1.37]
[1727409120205,0.37891,2638.7,2638.6,1.37]
[1727409120709,0.37898,2638.2,2638.0,0.98008387]
[1727409120910,0.37898,2638.2,2637.8,1.95392487]
[1727409120911,5.5633,2638.1,2637.8,0.98008387]
[1727409121211,5.5633,2638.1,2637.7,1.85736318]
[1727409121212,2.5798,2638.1,2637.7,0.3875]
[1727409121406,2.5798,2638.1,2637.7,1.7575]
[1727409121606,0.37902,2638.0,2637.7,1.7575]
[1727409121798,1.2098,2638.1,2637.7,1.7575]
[1727409122212,0.37904,2637.8,2637.7,2.73758387]
[1727409122513,0.37904,2637.8,2637.7,1.7575]
[1727409122710,0.37904,2637.9,2637.7,1.7575]
[1727409123413,1.2098,2638.1,2637.7,1.7575]
[1727409123711,1.58881,2638.1,2637.8,1.37]
[1727409123911,1.58881,2638.1,2638.0,1.37]
[1727409124119,1.2098,2638.1,2638.0,1.37]
[1727409124511,0.4029,2638.1,2638.0,1.37]
[1727409126105,0.37897,2638.3,2638.0,7.82009816]
[1727409126305,0.76786,2638.4,2638.2,1.37]
[1727409126513,0.37897,2638.3,2638.2,1.776]
[1727409126715,0.37897,2638.3,2638.2,14.776]
[1727409127216,0.76786,2638.4,2638.2,14.776]
[1727409127615,0.37897,2638.3,2638.2,14.776]
[1727409127820,0.76786,2638.4,2638.2,14.776]
[1727409128015,0.3889,2638.4,2638.2,14.776]
[1727409128415,0.37893,2638.6,2638.3,0.3885]
[1727409128725,0.37892,2638.7,2638.4,1.37]
[1727409129017,1.183,2638.8,2638.6,1.37]
[1727409129214,0.37891,2638.7,2638.6,1.37]
[1727409130011,0.5037,2638.8,2638.6,1.37]
[1727409130317,0.1095,2638.8,2638.6,1.37]
[1727409130516,0.1095,2638.8,2638.7,0.7762]
[1727409134319,0.4884,2638.8,2638.7,0.7762]
[1727409134824,0.1095,2638.8,2638.7,0.7762]
[1727409140512,0.1095,2638.8,2638.7,3.984]
[1727409141112,0.1095,2638.8,2638.7,0.7762]
[1727409141318,0.1095,2638.8,2638.7,3.984]
[1727409142022,0.37886,2639.1,2638.7,3.984]
[1727409142213,0.37886,2639.1,2639.0,1.37]
[1727409143011,0.77305,2639.2,2639.0,1.37]
[1727409143215,0.3942,2639.2,2639.0,1.37]
[1727409143822,0.3942,2639.2,2639.1,0.7529]
[1727409145626,0.77304,2639.2,2639.1,0.7529]
[1727409147124,0.37883,2639.3,2639.1,0.7529]
[1727409147325,0.37883,2639.3,2639.2,1.37]
[1727409155133,0.37883,2639.3,2639.1,1.1413]
[1727409155134,0.37884,2639.2,2639.1,1.37]
[1727409155327,0.37888,2639.0,2638.9,1.37]
[1727409159935,0.1095,2639.3,2638.9,5.1596]
[1727409160135,0.1095,2639.3,2639.2,0.37884]
[1727409160341,0.1095,2639.3,2639.1,1.74885]
[1727409160639,0.1095,2639.3,2639.2,17.9624]
[1727409160832,0.1095,2639.3,2639.2,18.34124]
[1727409161038,0.1095,2639.3,2639.2,17.9624]
[1727409163740,0.1095,2639.3,2639.2,14.1736]
[1727409163940,0.48833,2639.3,2639.2,14.1736]
[1727409164247,0.48833,2639.3,2639.2,15.5436]
[1727409167748,0.48833,2639.3,2639.2,2.5436]
[1727409169044,0.37883,2639.3,2639.2,2.5436]
[1727409169654,0.37882,2639.4,2639.2,2.5436]
[1727409170852,0.37881,2639.5,2639.2,2.5436]
[1727409171057,0.37881,2639.5,2639.4,1.37]
[1727409174965,3.2078,2639.7,2639.4,1.37]
[1727409175160,1.14683,2640.0,2639.4,3.2078]
[1727409175357,0.37879,2639.6,2639.4,1.37]
[1727409175563,0.3953,2639.5,2639.4,1.37]
[1727409175755,0.37878,2639.7,2639.4,1.37]
[1727409176654,0.37879,2639.6,2639.4,1.37]
[1727409177864,0.77019,2639.6,2639.4,1.37]
[1727409178061,0.3914,2639.6,2639.4,1.37]
[1727409178772,0.37876,2639.8,2639.5,1.37]
[1727409178961,0.37876,2639.8,2639.6,0.799]
[1727409179263,0.37876,2639.8,2639.6,1.195]
[1727409180959,0.3914,2639.9,2639.7,1.37]
[1727409180960,0.37875,2639.9,2639.7,1.37]
[1727409181163,0.75555,2639.9,2639.7,1.37]
[1727409181461,0.3768,2639.9,2639.7,1.37]
[1727409181768,0.57874,2640.0,2639.7,1.37]
[1727409182562,0.57874,2640.0,2639.9,1.37]
[1727409182563,0.2,2640.0,2639.9,1.37]
[1727409183259,0.2,2640.0,2639.6,1.57378]
[1727409183260,0.37876,2639.8,2639.6,1.195]
[1727409183570,0.37877,2639.7,2639.6,2.565]
[1727409183761,0.37877,2639.7,2639.6,1.195]
[1727409183762,0.76507,2639.7,2639.6,1.195]
[1727409184665,0.37879,2639.6,2639.4,4.5778]
[1727409184871,0.3788,2639.5,2639.4,4.5778]
[1727409185068,0.37879,2639.6,2639.4,4.5778]
[1727409185571,0.37878,2639.6,2639.4,4.5778]
[1727409187366,0.37879,2639.6,2639.4,4.5778]
[1727409188460,0.76508,2639.7,2639.4,4.5778]
[1727409189365,0.37879,2639.6,2639.4,4.5778]
[1727409189864,0.3788,2639.5,2639.4,4.5778]
[1727409190268,0.37879,2639.6,2639.4,4.5778]
[1727409190464,0.37879,2639.6,2639.4,1.37]
[1727409191869,0.37882,2639.4,2639.2,1.1735]
[1727409192071,0.37881,2639.4,2639.3,1.37]
[1727409195271,0.37881,2639.5,2639.3,1.37]
[1727409195477,0.37881,2639.4,2639.3,1.37]
[1727409196375,0.37881,2639.5,2639.3,1.37]
[1727409196675,0.37881,2639.5,2639.4,1.37]
[1727409196676,0.3788,2639.5,2639.4,1.37]
[1727409196973,0.37882,2639.4,2639.2,15.15358387]
[1727409197177,0.37882,2639.4,2639.3,1.37]
[1727409198386,3.97288,2639.7,2639.3,1.74883]
[1727409198582,3.97288,2639.7,2639.6,1.37]
[1727409198583,3.2078,2639.7,2639.6,1.37]
[1727409199076,3.58658,2639.7,2639.6,1.37]
[1727409199982,0.37876,2639.8,2639.6,1.37]
[1727409200281,0.37876,2639.8,2639.7,1.1831]
[1727409200670,7.874,2640.0,2639.7,1.1831]
[1727409200881,0.37874,2639.9,2639.7,1.1831]
[1727409201473,0.2,2640.0,2639.8,0.37875]
[1727409201779,0.3946,2640.4,2639.9,7.60913042]
[1727409201974,0.3946,2640.4,2640.3,1.37]
[1727409202279,0.77327,2640.4,2640.3,1.37]
[1727409202478,4.56047,2640.4,2640.3,1.37]
[1727409203275,0.37865,2640.6,2640.3,1.37]
[1727409203485,0.77325,2640.6,2640.3,1.37]
[1727409203786,4.56045,2640.6,2640.3,1.37]
[1727409203981,4.1818,2640.6,2640.3,1.37]
[1727409204281,0.37866,2640.5,2640.3,1.37]
[1727409204689,4.16586,2640.5,2640.3,1.37]
[1727409205278,3.7872,2640.5,2640.3,1.37]
[1727409205785,0.77325,2640.6,2640.3,1.37]
[1727409207986,3.2078,2641.0,2640.5,1.37]
[1727409208184,3.2078,2641.0,2640.9,1.37]
[1727409208382,0.37855,2641.3,2640.9,1.37]
[1727409208686,0.37854,2641.3,2641.2,1.37]
[1727409208987,0.37857,2641.1,2641.0,13.3788]
[1727409209182,0.3864,2641.6,2641.1,1.37]
[1727409209486,3.604,2641.7,2641.5,1.37]
[1727409209687,7.3896,2641.7,2641.5,1.37]
[1727409209983,4.1641,2641.6,2641.5,1.37]
[1727409210185,4.1641,2641.6,2641.2,0.7564]
[1727409210376,0.3785,2641.6,2641.5,1.37]
[1727409210576,4.974,2641.7,2641.2,0.7564]
[1727409210781,3.604,2641.7,2641.2,2.1264]
[1727409210990,3.2078,2641.4,2641.2,2.1264]
[1727409211182,3.604,2641.7,2641.2,2.1264]
[1727409211382,0.37851,2641.6,2641.4,1.37]
[1727409211688,0.37854,2641.3,2641.2,0.3754]
[1727409212982,3.58633,2641.4,2641.2,0.3754]
[1727409213584,3.2078,2641.4,2641.2,0.3754]
[1727409213777,3.58633,2641.4,2641.2,0.3754]
[1727409213985,3.2078,2641.4,2641.2,0.3754]
[1727409214182,0.37852,2641.5,2641.2,0.3754]
[1727409214885,0.37852,2641.5,2641.3,0.3746]
[1727409215777,3.604,2641.7,2641.3,0.3746]
[1727409215982,0.3785,2641.6,2641.3,0.3746]
[1727409216183,0.3785,2641.6,2641.4,0.3766]
[1727409218389,3.604,2641.7,2641.4,0.3766]
[1727409218585,0.37851,2641.5,2641.4,0.3766]
[1727409219187,0.37854,2641.3,2641.2,0.3754]
[1727409219695,3.2078,2641.4,2641.0,2.95]
[1727409219696,0.37857,2641.1,2641.0,2.95]
[1727409219892,0.37858,2641.0,2640.9,0.3911]
[1727409220086,0.37857,2641.1,2640.9,0.3911]
[1727409220485,0.37858,2641.0,2640.9,0.3911]
[1727409223884,0.37861,2640.8,2640.7,4.131]
[1727409224085,0.37863,2640.7,2640.5,1.1872]
[1727409224389,0.3787,2640.2,2640.0,2.95]
[1727409224584,0.37871,2640.1,2640.0,3.7294]
[1727409224897,0.37871,2640.1,2640.0,16.7294]
[1727409226995,0.37871,2640.1,2640.0,13.389]
[1727409227189,4.1818,2640.1,2639.7,2.95]
[1727409227385,0.37875,2639.8,2639.7,2.95]
[1727409227596,0.37877,2639.7,2639.6,0.7829]
[1727409228090,0.37877,2639.7,2639.6,13.7829]
[1727409228289,3.2078,2639.9,2639.6,13.7829]
[1727409228290,3.2078,2639.9,2639.6,13.3947]
[1727409228598,4.078,2640.4,2639.8,2.95]
[1727409228599,0.37871,2640.2,2639.8,2.95]
[1727409228893,0.37871,2640.2,2640.1,2.95]
[1727409229293,4.16671,2640.2,2640.1,2.95]
[1727409229884,3.2078,2640.4,2640.1,2.95]
[1727409230197,0.37867,2640.4,2640.3,2.95]
[1727409230393,0.75676,2640.5,2640.3,2.95]
[1727409230585,0.75676,2640.5,2640.4,0.3965]
[1727409230786,0.37863,2640.7,2640.4,0.3965]
[1727409230997,3.2078,2640.8,2640.5,2.95]
[1727409231196,3.58642,2640.8,2640.7,2.95]
[1727409231995,3.58642,2640.8,2640.5,2.95]
[1727409232198,0.37863,2640.7,2640.5,2.95]
[1727409233595,0.37861,2640.8,2640.5,2.95]
[1727409233802,0.37863,2640.7,2640.5,2.95]
[1727409235602,3.5864,2640.9,2640.5,2.95]
[1727409235799,3.5864,2640.9,2640.7,2.95]
[1727409236103,3.2078,2640.9,2640.8,13.3967]
[1727409236597,3.5864,2640.9,2640.8,13.3967]
[1727409236803,3.2078,2640.9,2640.8,13.3967]
[1727409237603,3.5864,2640.9,2640.8,13.3967]
[1727409239200,3.5864,2640.9,2640.8,0.3967]
[1727409241606,3.2078,2640.9,2640.8,0.3967]
[1727409241815,0.37855,2641.3,2640.8,7.775]